lending/lending_fUSD_20240621
["ID","MTS","AMOUNT","RATE_DAILY","PERIOD"]
[330018557,1718941833408,-152.26060599,0.00022145,2]
[330018558,1718941833417,-150.59824252,0.00022146,2]
[330018559,1718941833430,-377.78162086,0.00022151,2]
[330018560,1718941833440,-342.20084694,0.00022181,2]
[330018561,1718941833451,-750.48975069,0.00022191,2]
[330018562,1718941833461,-377.78162086,0.00022196,2]
[330018563,1718941833471,-151.37009716,0.00022198,2]
[330018564,1718941833482,-166.66666666,0.00022202,2]
[330018565,1718941833493,-154.30673624,0.00022202,2]
[330018566,1718941833503,-429.13779314,0.00022213,2]
[330018567,1718941833512,-543.41671411,0.00022213,2]
[330018568,1718941833522,-150.0,0.00022221,2]
[330018569,1718941833532,-342.20084694,0.00022222,2]
[330018570,1718941833542,-150.91328409,0.00022236,2]
[330018571,1718941833553,-152.3149169,0.00022237,2]
[330018572,1718941833563,-167.35603031,0.00022246,2]
[330018573,1718941833574,-154.23724614,0.00022248,2]
[330018574,1718941833583,-218.74996031,0.00022248,2]
[330018575,1718941833593,-429.13779314,0.00022252,2]
[330018576,1718941833603,-429.13779314,0.00022255,2]
[330018577,1718941833613,-161.00923893,0.00022261,2]
[330018578,1718941833622,-152.26060599,0.00022266,2]
[330018579,1718941833633,-154.68938117,0.00022291,2]
[330018580,1718941833644,-152.26060599,0.00022299,2]
[330018581,1718941833655,-166.66666666,0.00022315,2]
[330018582,1718941833663,-192.83914243,0.00022327,2]
[330018583,1718941833672,-543.41671411,0.00022329,2]
[330018584,1718941833681,-268.83541849,0.0002233,2]
[330018585,1718941833690,-166.6666667,0.00022337,2]
[330018586,1718941833699,-377.78162086,0.00022344,2]
[330018587,1718941833710,-154.68938117,0.00022348,2]
[330018588,1718941833719,-152.26060599,0.00022361,2]
[330018589,1718941833729,-155.5993683,0.00022366,2]
[330018590,1718941833740,-151.37009716,0.00022375,2]
[330018591,1718941833751,-150.91328409,0.00022382,2]
[330018592,1718941833762,-5339.03894402,0.00022387,2]
[330018593,1718941833772,-225.28103483,0.00022392,2]
[330018594,1718941833781,-543.41671411,0.00022407,2]
[330018595,1718941833791,-225.28103483,0.00022408,2]
[330018596,1718941833801,-155.43135762,0.00022409,2]
[330018597,1718941833810,-153.3707536,0.00022413,2]
[330018598,1718941833820,-429.13779314,0.00022414,2]
[330018599,1718941833835,-259.5,0.00022417,2]
[330018600,1718941833845,-297.68,0.00022417,2]
[330018601,1718941833854,-192.83914243,0.00022417,2]
[330018602,1718941833864,-192.83914243,0.00022433,2]
[330018603,1718941833874,-154.30673624,0.00022434,2]
[330018604,1718941833885,-166.66666667,0.0002244,2]
[330018605,1718941833894,-377.78162086,0.00022456,2]
[330018606,1718941833905,-153.3707536,0.0002246,2]
[330018607,1718941833914,-225.28103483,0.00022464,2]
[330018608,1718941833923,-166.66666666,0.00022464,2]
[330018609,1718941833932,-377.78162086,0.00022464,2]
[330018610,1718941833941,-154.30673624,0.0002247,2]
[330018611,1718941833951,-166.66666666,0.00022482,2]
[330018612,1718941833960,-543.41671411,0.00022483,2]
[330018613,1718941833969,-543.41671411,0.00022499,2]
[330018614,1718941833979,-154.68938117,0.00022509,2]
[330018615,1718941833988,-750.48975069,0.00022517,2]
[330018616,1718941833997,-154.30673624,0.00022522,2]
[330018617,1718941834007,-5339.03894402,0.00022525,2]
[330018618,1718941834016,-151.37009716,0.00022526,2]
[330018619,1718941834025,-545.94929446,0.00022528,2]
[330018620,1718941834035,-192.83914243,0.00022529,2]
[330018621,1718941834044,-170.80481227,0.00022547,2]
[330018622,1718941834053,-192.83914243,0.00022572,2]
[330018623,1718941834062,-165.36304257,0.00022572,2]
[330018624,1718941834071,-159.3028672,0.00022574,2]
[330018625,1718941834080,-154.23724614,0.00022577,2]
[330018626,1718941834089,-268.83541849,0.00022586,2]
[330018627,1718941834098,-1965.37644001,0.00022592,2]
[330018628,1718941834108,-750.48975069,0.00022601,2]
[330018629,1718941834118,-377.78162086,0.00022604,2]
[330018630,1718941834127,-152.04332994,0.00022608,2]
[330018631,1718941834136,-268.83541849,0.00022612,2]
[330018632,1718941834145,-166.66666666,0.00022614,2]
[330018633,1718941834156,-225.28103483,0.00022623,2]
[330018634,1718941834165,-377.78162086,0.00022624,2]
[330018635,1718941834174,-153.3707536,0.00022635,2]
[330018636,1718941834183,-192.83914243,0.00022642,2]
[330018637,1718941834192,-750.48975069,0.00022645,2]
[330018638,1718941834201,-166.66666666,0.00022654,2]
[330018639,1718941834211,-150.59824252,0.00022662,2]
[330018640,1718941834220,-1492.76253249,0.00022662,2]
[330018641,1718941834229,-750.48975069,0.00022663,2]
[330018642,1718941834238,-1965.37644001,0.00022669,2]
[330018643,1718941834247,-377.78162086,0.0002267,2]
[330018644,1718941834256,-160.48,0.00022678,2]
[330018645,1718941834266,-166.66666666,0.00022678,2]
[330018646,1718941834276,-166.66666668,0.00022684,2]
[330018647,1718941834285,-201.89973137,0.00022689,3]
[330018648,1718941834294,-543.41671411,0.0002269,2]
[330018649,1718941834304,-429.13779314,0.00022709,2]
[330018650,1718941834313,-155.5993683,0.00022711,2]
[330018651,1718941834322,-150.91328409,0.00022715,2]
[330018652,1718941834331,-155.5993683,0.00022732,2]
[330018653,1718941834340,-225.28103483,0.00022736,2]
[330018654,1718941834349,-543.41671411,0.00022741,2]
[330018655,1718941834358,-152.26060599,0.00022745,2]
[330018656,1718941834368,-342.20084694,0.00022754,2]
[330018657,1718941834377,-151.37009716,0.00022754,2]
[330018658,1718941834387,-429.13779314,0.00022757,2]
[330018659,1718941834395,-1975.92189915,0.00022757,2]
[330018660,1718941834405,-153.3707536,0.00022758,2]
[330018661,1718941834415,-155.5993683,0.00022761,2]
[330018662,1718941834424,-151.37009716,0.00022769,2]
[330018663,1718941834433,-336.60896664,0.00022777,2]
[330018664,1718941834442,-192.83914243,0.00022781,2]
[330018665,1718941834451,-152.26060599,0.00022782,2]
[330018666,1718941834460,-197.84210557,0.00022785,2]
[330018667,1718941834469,-334.98286573,0.00022785,2]
[330018668,1718941834479,-537.2243622,0.00022786,2]
[330018669,1718941834488,-151.37009716,0.00022788,2]
[330018670,1718941834497,-2334.247,0.0002279,2]
[330018671,1718941834506,-537.2243622,0.00022798,2]
[330018672,1718941834516,-215.0,0.000228,2]
[330018673,1718941834525,-619.48877836,0.000228,5]
[330018674,1718941834534,-500.0,0.00022804,2]
[330018675,1718941834542,-200.0,0.00022804,2]
[330018676,1718941834552,-200.0,0.00022805,2]
[330018677,1718941834561,-200.0,0.00022805,2]
[330018678,1718941834571,-1000.0,0.00022805,2]
[330018679,1718941834580,-500.0,0.00022805,2]
[330018680,1718941834589,-500.0,0.00022805,2]
[330018681,1718941834598,-200.0,0.00022805,2]
[330018682,1718941834607,-192.83914243,0.00022809,2]
[330018683,1718941834617,-1965.37644001,0.00022827,2]
[330018684,1718941834627,-543.41671411,0.00022828,2]
[330018685,1718941834637,-154.30673624,0.00022844,2]
[330018686,1718941834648,-750.48975069,0.00022852,2]
[330018687,1718941834658,-377.78162086,0.00022853,2]
[330018688,1718941834667,-1965.37644001,0.00022861,2]
[330018689,1718941834676,-1965.37644001,0.00022862,2]
[330018690,1718941834686,-154.30673624,0.00022865,2]
[330018691,1718941834695,-429.13779314,0.00022865,2]
[330018692,1718941834704,-1000.0,0.00022874,2]
[330018693,1718941834714,-10000.0,0.00022874,2]
[330018694,1718941834723,-155.5993683,0.00022877,2]
[330018695,1718941834733,-167.35603031,0.00022878,2]
[330018696,1718941834742,-169.18935952,0.00022881,2]
[330018697,1718941834752,-1965.37644001,0.00022883,2]
[330018698,1718941834761,-157.40336427,0.0002289,2]
[330018699,1718941834771,-212.4772941,0.0002289,2]
[330018700,1718941834971,-12008.15036936,0.0002289,2]
[330018701,1718941834984,-6469.20044009,0.0002289,2]
[330018702,1718941834993,-358.32103265,0.0002289,2]
[330018703,1718941835003,-8155.0153,0.0002289,2]
[330018704,1718941835013,-441.7366,0.0002289,2]
[330018705,1718941835022,-156.30619669,0.00022892,2]
[330018706,1718941835031,-1965.37644001,0.00022898,2]
[330018707,1718941835040,-151.0,0.000229,11]
[330018708,1718941835049,-262.0,0.000229,2]
[330018709,1718941835058,-263.0,0.000229,2]
[330018710,1718941835067,-160.0,0.000229,2]
[330018711,1718941835076,-160.0,0.000229,2]
[330018712,1718941835085,-190.0,0.000229,5]
[330018713,1718941835095,-191.0,0.000229,5]
[330018714,1718941835104,-490.0,0.000229,5]
[330018715,1718941835113,-508.0,0.000229,5]
[330018716,1718941835123,-342.20084694,0.00022909,2]
[330018717,1718941835132,-268.83541849,0.00022909,2]
[330018718,1718941835141,-152.3149169,0.00022915,2]
[330018719,1718941835151,-166.66666667,0.00022921,2]
[330018720,1718941835165,-161.00923893,0.00022931,2]
[330018721,1718941835174,-154.23724614,0.00022936,2]
[330018722,1718941835182,-192.83914243,0.00022936,2]
[330018723,1718941835191,-154.23724614,0.00022939,2]
[330018724,1718941835200,-750.48975069,0.00022948,2]
[330018725,1718941835209,-377.78162086,0.00022959,2]
[330018726,1718941835218,-215.25571292,0.0002298,2]
[330018727,1718941835226,-425.16282245,0.0002298,2]
[330018728,1718941835235,-429.13779314,0.0002298,2]
[330018729,1718941835245,-429.13779314,0.00022985,2]
[330018730,1718941835256,-428.15200838,0.00022987,2]
[330018731,1718941835266,-1251.89676,0.00022988,2]
[330018732,1718941835275,-2544.87,0.00022989,3]
[330018733,1718941835284,-703.31473803,0.00022989,2]
[330018734,1718941835293,-605.96915068,0.0002299,2]
[330018735,1718941835302,-66970.12850779,0.0002299,2]
[330018736,1718941835311,-1262.78363914,0.0002299,2]
[330018737,1718941835319,-348956.13551971,0.0002299,5]
[330018738,1718941835334,-7215.10767295,0.0002299,5]
[330018739,1718941835345,-889.15149544,0.0002299,5]
[330018740,1718941835364,-450.037073,0.0002299,5]
[330018742,1718941837380,-244.37014939,0.0002074,2]
[330018743,1718941837390,-450.31890326,0.00022768,2]
[330018744,1718941837400,-2312.91806973,0.0002299,5]
[330018745,1718941837411,-3465.22761599,0.0002299,5]
[330018746,1718941837422,-5117.74349064,0.0002299,5]
[330018747,1718941837512,-1143.9702726,0.0002299,5]
[330018748,1718941837563,-3473.69212897,0.0002299,5]
[330018749,1718941837655,-1717.2,0.0002299,5]
[330018750,1718941837672,-616.0,0.0002299,5]
[330018751,1718941837685,-174326.67006332,0.0002299,5]
[330018920,1718941839496,-728.1,0.0002299,3]
[330018931,1718941839593,-312.32684058,0.0002299,3]
[330018949,1718941839774,-401155.11702691,0.0002299,3]
[330018952,1718941839787,-1567.34223573,0.0002299,3]
[330018973,1718941839995,-930.33319348,0.0002299,3]
[330018976,1718941840008,-3569.951324,0.0002299,3]
[330019236,1718941842806,-244.37014939,0.00021278,2]
[330019238,1718941842816,-10.11452548,0.0002299,3]
[330019241,1718941842830,-557.45058583,0.0002299,3]
[330019243,1718941842848,-1078.88186558,0.0002299,3]
[330019247,1718941842872,-1320.1000002,0.0002299,3]
[330019249,1718941842884,-535.75463978,0.0002299,3]
[330019251,1718941842895,-1134.83532094,0.0002299,3]
[330019540,1718941845652,-6412.56595031,0.0002299,3]
[330019544,1718941845664,-500.0,0.0002299,3]
[330019550,1718941845690,-500.0,0.0002299,3]
[330019559,1718941845731,-244.37014939,0.00021815,2]
[330019562,1718941845740,-2455.43403868,0.0002299,3]
[330019565,1718941845752,-8280.005795,0.0002299,3]
[330019588,1718941845874,-580.76799923,0.0002299,3]
[330019590,1718941845886,-359.00939672,0.0002299,3]
[330019593,1718941845911,-29485.04690252,0.0002299,3]
[330019595,1718941845925,-1801.94717962,0.0002299,3]
[330019600,1718941846012,-16231.02761,0.0002299,3]
[330019601,1718941846023,-542.39928832,0.0002299,3]
[330019673,1718943033034,-259.37769393,0.0001298,2]
[330019676,1718943033046,-6787.65080607,0.0001298,2]
[330019678,1718943033055,-1580.0,0.000158,2]
[330019680,1718943033065,-1339.7548544,0.00017259,2]
[330019681,1718943033075,-150.0,0.00017528,2]
[330019683,1718943033084,-150.0,0.00017528,2]
[330019684,1718943033093,-300.0,0.00017528,2]
[330019685,1718943033102,-560.09,0.00018369,2]
[330019686,1718943033112,-152.0,0.00019112,3]
[330019687,1718943033121,-4417.99,0.00019283,2]
[330019689,1718943033130,-1436.33868143,0.00019284,2]
[330019694,1718943033171,-370.86756909,0.00019284,2]
[330019696,1718943033181,-690.51041711,0.00019284,2]
[330019697,1718943033192,-789.29286824,0.00019284,2]
[330019698,1718943033204,-295.46023668,0.00019284,2]
[330019699,1718943033230,-339.85299,0.00019284,2]
[330019700,1718943033241,-1536.45624291,0.00019284,2]
[330019701,1718943033251,-4541.21099454,0.00019284,2]
[330019702,1718943033261,-6206.19416943,0.00019284,2]
[330019703,1718943033276,-1502.92032109,0.00019284,2]
[330019704,1718943033298,-1940.68875,0.00019284,2]
[330019705,1718943033310,-3827.64675948,0.00019284,2]
[330019706,1718943033321,-299.99,0.00019284,4]
[330019707,1718943033330,-499.99,0.00019452,2]
[330019708,1718943033339,-499.99,0.00019452,2]
[330019709,1718943033349,-152.0,0.00019833,4]
[330019710,1718943033360,-1000.0,0.0002,5]
[330019711,1718943033370,-150.0,0.00020079,2]
[330019712,1718943033379,-1292.63,0.00020121,2]
[330019713,1718943033388,-250.0,0.00020155,2]
[330019714,1718943033398,-200.0,0.00020187,2]
[330019715,1718943033407,-168.73,0.00020194,2]
[330019716,1718943033416,-4000.0,0.00020328,2]
[330019717,1718943033426,-766.37,0.00020341,2]
[330019718,1718943033435,-173.81,0.00020349,2]
[330019719,1718943033445,-1023.76,0.00020417,30]
[330019720,1718943033454,-179.57,0.00020466,2]
[330019721,1718943033463,-200.0,0.00020478,2]
[330019722,1718943033472,-250.0,0.00020489,2]
[330019723,1718943033481,-179.57,0.00020522,2]
[330019724,1718943033490,-152.0,0.00020555,5]
[330019725,1718943033499,-179.57,0.00020578,2]
[330019726,1718943033508,-560.09,0.00020633,2]
[330019727,1718943033517,-179.57,0.00020634,2]
[330019728,1718943033526,-179.57,0.00020691,2]
[330019729,1718943033535,-23900.0,0.00020698,2]
[330019730,1718943033547,-1000.0,0.00020718,2]
[330019731,1718943033558,-179.57,0.00020747,2]
[330019732,1718943033569,-179.57,0.00020803,2]
[330019733,1718943033578,-1601.03,0.00020844,2]
[330019734,1718943033589,-179.57,0.00020859,2]
[330019735,1718943033598,-179.57,0.00020915,2]
[330019736,1718943033609,-339.26984738,0.00020948,2]
[330019737,1718943033622,-160.73015262,0.00020948,2]
[330019738,1718943033633,-179.57,0.00020971,2]
[330019739,1718943033644,-202.369141,0.00021,2]
[330019740,1718943033654,-1250.0,0.00021,2]
[330019741,1718943033665,-179.57,0.00021027,2]
[330019742,1718943033676,-179.57,0.00021084,2]
[330019743,1718943033685,-179.57,0.0002114,2]
[330019744,1718943033694,-29933.037,0.00021148,2]
[330019745,1718943033703,-179.57,0.00021196,2]
[330019746,1718943033712,-150.0,0.00021214,2]
[330019747,1718943033722,-179.57,0.00021252,2]
[330019748,1718943033732,-178.93,0.00021263,2]
[330019749,1718943033743,-178.93,0.00021269,2]
[330019750,1718943033753,-178.93,0.00021274,2]
[330019751,1718943033762,-152.0,0.00021276,6]
[330019752,1718943033773,-178.93,0.0002128,2]
[330019753,1718943033785,-178.93,0.00021285,2]
[330019754,1718943033795,-178.93,0.00021291,2]
[330019755,1718943033806,-174.62,0.00021293,2]
[330019756,1718943033815,-178.93,0.00021297,2]
[330019757,1718943033826,-178.93,0.00021302,2]
[330019758,1718943033835,-178.93,0.00021308,2]
[330019759,1718943033846,-179.57,0.00021308,2]
[330019760,1718943033856,-178.93,0.00021313,2]
[330019761,1718943033866,-178.93,0.00021319,2]
[330019762,1718943033876,-178.93,0.00021325,2]
[330019763,1718943033885,-178.93,0.0002133,2]
[330019764,1718943033896,-178.93,0.00021336,2]
[330019765,1718943033907,-178.93,0.00021341,2]
[330019766,1718943033916,-178.93,0.00021347,2]
[330019767,1718943033925,-178.93,0.00021353,2]
[330019768,1718943033935,-178.93,0.00021358,2]
[330019769,1718943033945,-178.93,0.00021364,2]
[330019770,1718943033955,-179.57,0.00021364,2]
[330019771,1718943033965,-178.93,0.00021369,2]
[330019772,1718943033975,-179.57,0.0002142,2]
[330019773,1718943033984,-300.0,0.00021461,2]
[330019774,1718943033993,-179.57,0.00021477,2]
[330019775,1718943034002,-179.57,0.00021533,2]
[330019776,1718943034011,-450.0,0.00021585,2]
[330019777,1718943034021,-595.89,0.00021644,2]
[330019778,1718943034030,-1000.0,0.000219,2]
[330019779,1718943034039,-602.56,0.00021917,2]
[330019780,1718943034049,-1483.0,0.00021918,2]
[330019781,1718943034059,-152.0,0.00021998,7]
[330019782,1718943034072,-152.3149169,0.0002201,2]
[330019783,1718943034082,-232.99069603,0.00022014,2]
[330019784,1718943034092,-181.13067257,0.00022024,2]
[330019785,1718943034101,-852.36,0.00022027,2]
[330019786,1718943034112,-422.51,0.00022027,2]
[330019787,1718943034122,-150.91328409,0.00022028,2]
[330019788,1718943034132,-153.3707536,0.00022045,2]
[330019789,1718943034142,-285.16737245,0.00022046,2]
[330019790,1718943034152,-166.66666667,0.00022058,2]
[330019791,1718943034162,-232.99069603,0.00022059,2]
[330019792,1718943034174,-204.34931055,0.0002206,2]
[330019793,1718943034183,-362.27780941,0.00022065,2]
[330019794,1718943034193,-232.99069603,0.00022067,2]
[330019795,1718943034203,-4449.19912001,0.00022067,2]
[330019796,1718943034216,-152.260606,0.00022067,2]
[330019797,1718943034227,-285.16737245,0.0002207,2]
[330019798,1718943034238,-153.3707536,0.00022075,2]
[330019799,1718943034247,-300.3964552,0.00022079,2]
[330019800,1718943034258,-180.0,0.0002208,2]
[330019801,1718943034269,-232.99069603,0.00022086,2]
[330019802,1718943034281,-153.3707536,0.00022088,2]
[330019803,1718943034292,-550.35915051,0.00022091,2]
[330019804,1718943034303,-155.59936831,0.00022093,2]
[330019805,1718943034316,-565.0,0.00022117,2]
[330019806,1718943034328,-154.23724615,0.00022117,2]
[330019807,1718943034337,-4449.19912001,0.00022147,2]
[330019808,1718943034348,-154.27131394,0.00022152,2]
[330019809,1718943034357,-550.35915051,0.00022159,2]
[330019810,1718943034366,-709.64499489,0.00022169,2]
[330019811,1718943034376,-166.66666666,0.00022173,2]
[330019812,1718943034385,-150.27313362,0.00022178,2]
[330019813,1718943034395,-154.27131394,0.00022182,2]
[330019814,1718943034405,-602.56,0.00022191,3]
[330019815,1718943034415,-152.260606,0.00022213,2]
[330019816,1718943034424,-30.99576739,0.00022225,2]
[330019817,1718943034461,-119.00423261,0.00022225,2]
[330019818,1718943034471,-150.0,0.00022233,2]
[330019819,1718943034480,-232.99069603,0.00022236,2]
[330019820,1718943034490,-154.23724615,0.00022247,2]
[330019821,1718943034500,-253.96968946,0.00022252,2]
[330019822,1718943034512,-46.42676574,0.00022252,2]
[330019823,1718943034522,-232.99069603,0.00022263,2]
[330019824,1718943034534,-187.73419569,0.00022271,2]
[330019825,1718943034544,-150.27313362,0.00022279,2]
[330019826,1718943034554,-150.59824252,0.00022284,2]
[330019827,1718943034563,-152.260606,0.00022286,2]
[330019828,1718943034573,-550.35915051,0.00022299,2]
[330019829,1718943034582,-85.04066389,0.00022311,2]
[330019830,1718943034593,-277.23714552,0.00022311,2]
[330019831,1718943034603,-300.3964552,0.00022317,2]
[330019832,1718943034613,-151.37009716,0.00022319,2]
[330019833,1718943034624,-4449.19912001,0.00022321,2]
[330019834,1718943034633,-362.27780941,0.00022324,2]
[330019835,1718943034643,-63.05628171,0.00022343,2]
[330019836,1718943034656,-299.2215277,0.00022343,2]
[330019837,1718943034666,-232.99069603,0.00022346,2]
[330019838,1718943034675,-550.35915051,0.00022347,2]
[330019839,1718943034685,-150.0,0.00022352,2]
[330019840,1718943034694,-285.16737245,0.00022358,2]
[330019841,1718943034704,-187.73419569,0.00022363,2]
[330019842,1718943034713,-166.66666668,0.00022364,2]
[330019843,1718943034722,-232.99069603,0.00022364,2]
[330019844,1718943034731,-171.3394229,0.00022376,2]
[330019845,1718943034742,-150.27313362,0.0002239,2]
[330019846,1718943034751,-154.30673624,0.0002239,2]
[330019847,1718943034761,-1441.27605601,0.00022419,2]
[330019848,1718943034770,-285.16737245,0.00022419,2]
[330019849,1718943034780,-150.0,0.00022422,2]
[330019850,1718943034789,-1441.27605601,0.00022424,2]
[330019851,1718943034798,-550.35915051,0.00022424,2]
[330019852,1718943034806,-154.30673624,0.00022429,2]
[330019853,1718943034816,-300.3964552,0.0002243,2]
[330019854,1718943034826,-154.30673624,0.00022431,2]
[330019855,1718943034835,-4449.19912001,0.00022432,2]
[330019856,1718943034843,-4449.19912001,0.00022441,2]
[330019857,1718943034854,-187.73419569,0.00022452,2]
[330019858,1718943034864,-4449.19912001,0.00022455,2]
[330019859,1718943034874,-602.56,0.00022465,4]
[330019860,1718943034883,-308.5753,0.00022468,2]
[330019861,1718943034892,-450.0,0.00022484,2]
[330019862,1718943034902,-285.16737245,0.00022484,2]
[330019863,1718943034911,-300.3964552,0.00022499,2]
[330019864,1718943034920,-1024.0,0.000225,2]
[330019865,1718943034930,-1441.27605601,0.00022513,2]
[330019866,1718943034939,-1441.27605601,0.00022516,2]
[330019867,1718943034948,-159.30286722,0.00022522,2]
[330019868,1718943034957,-254.47202492,0.0002253,2]
[330019869,1718943035274,-291.47726954,0.0002253,2]
[330019870,1718943035284,-152.3149169,0.00022537,2]
[330019871,1718943035293,-151.37009716,0.00022545,2]
[330019872,1718943035303,-154.30673624,0.00022568,2]
[330019873,1718943035311,-709.64499489,0.00022593,2]
[330019874,1718943035324,-162.91343294,0.00022595,2]
[330019875,1718943035333,-232.99069603,0.00022603,2]
[330019876,1718943035342,-709.64499489,0.00022606,2]
[330019877,1718943035358,-362.27780941,0.00022606,2]
[330019878,1718943035368,-215.93997548,0.00022615,2]
[330019879,1718943035381,-1225.33608053,0.00022615,2]
[330019880,1718943035392,-150.27313362,0.00022619,2]
[330019881,1718943035404,-150.0,0.00022639,2]
[330019882,1718943035415,-362.27780941,0.00022646,2]
[330019883,1718943035425,-154.27131394,0.00022647,2]
[330019884,1718943035434,-167.0,0.00022649,2]
[330019885,1718943035444,-176.83,0.00022664,2]
[330019886,1718943035453,-154.27131394,0.00022665,2]
[330019887,1718943035462,-232.99069603,0.00022671,2]
[330019888,1718943035472,-550.35915051,0.00022677,2]
[330019889,1718943035484,-24312.35629692,0.0002269,2]
[330019895,1718943037739,-369.61993973,0.0002269,2]
[330019896,1718943037830,-484.04490237,0.0002269,2]
[330019897,1718943037842,-451.57864314,0.0002269,2]
[330019898,1718943037854,-4474.43573524,0.0002269,2]
[330019899,1718943037866,-939.46473459,0.0002269,2]
[330019900,1718943037921,-14289.22783872,0.0002269,2]
[330019901,1718943037999,-1255.29917648,0.0002269,2]
[330019902,1718943038012,-1000.12448016,0.0002269,2]
[330019903,1718943038024,-6842.5,0.0002269,2]
[330019904,1718943038082,-528.39896365,0.0002269,2]
[330019905,1718943038094,-773.29712072,0.0002269,2]
[330019906,1718943038105,-1340.26476761,0.0002269,2]
[330019907,1718943038118,-1258.28539142,0.0002269,2]
[330019908,1718943038130,-31778.36654774,0.0002269,2]
[330019909,1718943038142,-2581.99999999,0.0002269,2]
[330019910,1718943038158,-6505.42530835,0.0002269,2]
[330019911,1718943038173,-65666.31339347,0.0002269,2]
[330020036,1718943039767,-755.0,0.0002269,2]
[330020040,1718943039803,-1822.09764027,0.0002269,2]
[330020046,1718943039852,-62127.92181943,0.0002269,2]
[330020048,1718943039862,-709.64499489,0.00022695,2]
[330020050,1718943039876,-152.3149169,0.00022706,2]
[330020052,1718943039886,-152.0,0.00022719,8]
[330020054,1718943039895,-1441.27605601,0.00022721,2]
[330020056,1718943039905,-602.56,0.00022739,5]
[330020058,1718943039916,-162.91343292,0.00022743,2]
[330020060,1718943039926,-300.3964552,0.00022743,2]
[330020062,1718943039935,-150.27313362,0.00022743,2]
[330020064,1718943039945,-154.27131394,0.00022765,2]
[330020066,1718943039955,-362.27780941,0.00022765,2]
[330020068,1718943039965,-155.36348853,0.00022768,2]
[330020070,1718943039975,-370.11444388,0.0002277,2]
[330020072,1718943039984,-1441.27605601,0.00022782,2]
[330020074,1718943039994,-1283.4551,0.0002279,2]
[330020077,1718943040003,-58297.5393,0.0002279,2]
[330020078,1718943040013,-300.3964552,0.00022797,2]
[330020081,1718943040023,-4449.19912001,0.000228,2]
[330020082,1718943040033,-187.73419569,0.00022801,2]
[330020085,1718943040043,-232.99069603,0.00022804,2]
[330020087,1718943040052,-200.0,0.00022805,2]
[330020088,1718943040062,-200.0,0.00022806,2]
[330020090,1718943040072,-1000.0,0.00022806,2]
[330020092,1718943040085,-500.0,0.00022806,2]
[330020094,1718943040095,-362.27780941,0.00022808,2]
[330020096,1718943040104,-166.66666666,0.00022814,2]
[330020098,1718943040114,-1441.27605601,0.00022822,2]
[330020100,1718943040123,-300.0,0.00022831,2]
[330020102,1718943040132,-232.99069603,0.00022832,2]
[330020104,1718943040141,-232.99069603,0.00022836,2]
[330020106,1718943040151,-187.73419569,0.00022844,2]
[330020108,1718943040160,-154.27131394,0.00022852,2]
[330020110,1718943040169,-1292.63,0.00022861,2]
[330020112,1718943040178,-709.64499489,0.00022865,2]
[330020114,1718943040188,-152.260606,0.00022872,2]
[330020116,1718943040198,-155.15311692,0.00022874,2]
[330020118,1718943040207,-155.28931546,0.00022875,2]
[330020120,1718943040217,-221.3,0.00022877,3]
[330020123,1718943040226,-285.16737245,0.00022878,2]
[330020124,1718943040236,-709.64499489,0.0002288,2]
[330020126,1718943040245,-409.14453923,0.00022889,2]
[330020129,1718943040254,-215.0,0.0002289,2]
[330020131,1718943040266,-1558.4846,0.0002289,2]
[330020133,1718943040279,-488.7354,0.0002289,2]
[330020135,1718943040289,-35621.8468,0.0002289,2]
[330020137,1718943040298,-6538.3818,0.0002289,2]
[330020159,1718943040504,-2492.7222,0.0002289,2]
[330020160,1718943040514,-204.13988712,0.0002289,2]
[330020161,1718943040524,-20668.27313291,0.0002289,2]
[330020162,1718943040534,-618.7268262,0.0002289,2]
[330020163,1718943040543,-162.91343292,0.0002289,2]
[330020164,1718943040552,-1632.31676574,0.0002289,2]
[330020165,1718943040562,-10000.0,0.0002289,2]
[330020166,1718943040571,-1000.0,0.0002289,2]
[330020167,1718943040585,-441.7366,0.0002289,2]
[330020169,1718943040594,-560.09,0.00022897,2]